bitfinex/quotes_ETHUSD_20220103
["timestamp","ask_amount","ask_price","bid_price","bid_amount"]
[1641223189678,0.65656,3807.9,3807.5,1.33524117]
[1641223190078,1.82385866,3807.8,3807.6,1.34149383]
[1641223190377,1.82385866,3807.8,3807.7,0.00568423]
[1641223191022,3.13690866,3808.1,3807.7,1.07266307]
[1641223191225,0.65655,3807.8,3807.7,1.07266307]
[1641223191427,0.65655,3807.8,3807.7,1.06697884]
[1641223192223,0.65655,3807.8,3807.6,1.33524117]
[1641223192427,1.31313,3807.8,3807.6,1.33524117]
[1641223192824,0.65655,3807.8,3807.6,1.33524117]
[1641223193629,1.31311,3807.8,3807.6,1.33524117]
[1641223195378,0.65655,3807.8,3807.6,1.33524117]
[1641223196179,1.85372908,3807.7,3807.6,1.06697884]
[1641223196579,1.85372908,3807.7,3807.6,1.0732315]
[1641223196982,1.27910916,3808.7,3807.7,4.0]
[1641223197281,1.27910916,3808.7,3808.6,0.01266794]
[1641223198081,1.27910916,3808.7,3808.5,1.31254]
[1641223198539,1.27910916,3808.7,3808.5,2.64778117]
[1641223198740,1.27910916,3808.7,3808.5,2.94778117]
[1641223198939,1.27910916,3808.7,3808.6,1.0]
[1641223199538,1.27910916,3808.7,3808.6,2.33524117]
[1641223200840,1.27910916,3808.7,3808.6,3.40480248]
[1641223201140,1.27910916,3808.7,3808.6,4.06106248]
[1641223201639,1.27910916,3808.7,3808.6,4.85626]
[1641223202186,1.27910916,3808.7,3808.6,4.0638874]
[1641223202375,1.27910916,3808.7,3808.6,1.65626]
[1641223202778,1.27910916,3808.7,3808.6,0.65626]
[1641223202974,1.27910916,3808.7,3808.2,6.30352091]
[1641223202975,1.27910916,3808.7,3808.2,3.56198501]
[1641223203176,1.57910916,3808.7,3808.2,3.56198501]
[1641223203376,1.87910916,3808.7,3808.3,0.00227369]
[1641223203579,0.65649,3808.5,3808.3,0.00227369]
[1641223203979,1.07472713,3808.4,3808.3,0.00227369]
[1641223204180,1.07472713,3808.4,3808.2,0.00284212]
[1641223204380,1.73131713,3808.4,3808.2,0.00284212]
[1641223204780,2.33131713,3808.4,3808.2,0.00284212]
[1641223205781,2.03131713,3808.4,3808.2,0.00284212]
[1641223206439,0.6565872,3808.3,3808.0,0.00397896]
[1641223206639,0.6566,3808.2,3808.0,0.00397896]
[1641223206839,0.6566,3808.2,3808.0,1.33908835]
[1641223207238,0.6566,3808.2,3808.1,0.00341054]
[1641223207842,0.6566,3808.2,3808.0,0.00397896]
[1641223208242,0.6566,3808.2,3808.0,1.33908835]
[1641223208643,0.6566,3808.2,3808.1,0.00341054]
[1641223209043,1.34203912,3808.5,3808.1,0.00341054]
[1641223209245,1.34203912,3808.5,3808.0,0.00397896]
[1641223209443,1.34203912,3808.5,3808.1,1.33510939]
[1641223209679,0.68554912,3808.5,3808.1,1.33510939]
[1641223209877,0.68554912,3808.5,3808.2,0.00284212]
[1641223210277,0.68554912,3808.5,3808.3,1.33510939]
[1641223210680,0.68554912,3808.5,3808.4,0.00170527]
[1641223211295,0.68554912,3808.5,3808.4,1.33681466]
[1641223213086,1.27910916,3808.7,3808.4,1.33681466]
[1641223213288,1.27910916,3808.7,3808.4,0.30170527]
[1641223213529,1.27910916,3808.7,3808.5,0.00113684]
[1641223214128,1.27910916,3808.7,3808.5,1.00113684]
[1641223214328,1.27910916,3808.7,3808.6,11.95059126]
[1641223214531,1.27910916,3808.7,3808.6,3.15059126]
[1641223214731,1.27910916,3808.7,3808.6,4.15059126]
[1641223215335,1.27910916,3808.7,3808.6,1.679]
[1641223215532,1.27910916,3808.7,3808.6,9.42273279]
[1641223215936,1.27910916,3808.7,3808.6,10.42122093]
[1641223216433,1.27910916,3808.7,3808.6,23.289]
[1641223217289,1.27910916,3808.7,3808.6,24.34864071]
[1641223218195,1.27910916,3808.7,3808.6,9.03864071]
[1641223218392,1.27910916,3808.7,3808.6,11.46471459]
[1641223218595,1.27910916,3808.7,3808.6,11.46216569]
[1641223218794,1.27910916,3808.7,3808.6,9.03864071]
[1641223219197,1.27910916,3808.7,3808.6,11.4856275]
[1641223219400,1.27910916,3808.7,3808.6,26.80773953]
[1641223220500,1.27910916,3808.7,3808.6,30.36972454]
[1641223220698,1.77987393,3809.1,3808.6,6.30062572]
[1641223220944,1.77987393,3809.1,3808.8,1.2467244]
[1641223221147,0.00170527,3809.0,3808.9,14.26998274]
[1641223221345,0.00170527,3809.0,3808.9,27.05721]
[1641223221544,0.00170527,3809.0,3808.9,32.67883572]
[1641223222248,0.00170527,3809.0,3808.9,17.36883572]
[1641223223452,0.00170527,3809.0,3808.9,32.67883572]
[1641223223649,0.00023902,3809.0,3808.9,29.11685071]
[1641223224148,1.73011295,3809.1,3809.0,24.41]
[1641223224351,1.73011295,3809.1,3809.0,25.9699219]
[1641223224549,1.73011295,3809.1,3809.0,27.2699219]
[1641223224816,1.73011295,3809.1,3809.0,11.9599219]
[1641223225212,1.73011295,3809.1,3809.0,13.18237346]
[1641223225413,1.73011295,3809.1,3809.0,28.49237346]
[1641223225819,0.06550552,3809.5,3809.0,28.79237346]
[1641223226023,0.06550552,3809.5,3809.3,0.65603]
[1641223226322,0.0022737,3809.4,3809.3,1.8368831]
[1641223226518,0.0022737,3809.4,3809.3,9.6868831]
[1641223226920,10.0,3810.0,3809.7,0.5904337]
[1641223227122,0.91715867,3810.0,3809.8,2.9066242]
[1641223227322,0.00432976,3810.0,3809.9,11.6276242]
[1641223227522,1.75005453,3811.0,3809.9,11.6276242]
[1641223227523,1.75005453,3811.0,3809.9,13.3066242]
[1641223227719,1.054e-05,3810.0,3809.9,11.032]
[1641223227919,1.75005453,3811.0,3810.8,1.13469724]
[1641223228120,1.75005453,3811.0,3810.9,9.479]
[1641223228548,1.75005453,3811.0,3810.9,10.779]
[1641223228952,2.47952262,3811.1,3810.9,10.779]
[1641223229148,6.21,3811.3,3811.0,1.590199]
[1641223229349,6.21,3811.3,3811.2,4.85578]
[1641223229650,6.21,3811.3,3811.2,6.23478]
[1641223230050,8.09453794,3811.3,3811.2,6.23478]
[1641223230251,1.88453794,3811.3,3811.2,6.23478]
[1641223231350,1.75005453,3812.3,3811.2,8.6508767]
[1641223231556,1.75005453,3812.3,3811.8,0.65573]
[1641223231750,0.01193689,3812.1,3811.8,0.65573]
[1641223232198,0.01136847,3812.0,3811.8,0.55573]
[1641223232398,0.02454792,3812.0,3811.8,0.55573]
[1641223232600,0.01080004,3811.9,3811.8,0.55573]
[1641223233603,1.90070664,3811.9,3811.8,0.55573]
[1641223235002,1.90070664,3811.9,3811.6,1.33477937]
[1641223235207,2.20070664,3811.9,3811.6,1.33477937]
[1641223235404,0.01023162,3811.8,3811.6,1.33477937]
[1641223235804,2.1899066,3811.9,3811.6,1.33477937]
[1641223235805,0.0096632,3811.7,3811.6,1.33477937]
[1641223236938,1.8995698,3811.7,3811.5,0.06549969]
[1641223237135,2.1995698,3811.7,3811.5,0.06549969]
[1641223237334,0.00909477,3811.6,3811.5,0.06549969]
[1641223238037,0.02227422,3811.6,3811.5,0.06549969]
[1641223238440,0.02582146,3811.6,3811.5,0.06549969]
[1641223238639,1.91572806,3811.6,3811.5,0.06549969]
[1641223239040,2.21572806,3811.6,3811.5,0.06549969]
[1641223239243,2.21572806,3811.6,3811.2,1.2]
[1641223239703,0.00852635,3811.5,3811.2,1.2]
[1641223239903,0.00852635,3811.5,3811.2,1.26535134]
[1641223240105,1.52233485,3811.6,3811.4,9.1]
[1641223240307,0.06535134,3812.3,3811.8,9.1]
[1641223240504,0.06535134,3812.3,3812.2,0.01266349]
[1641223240706,0.06535134,3812.3,3812.2,0.39166349]
[1641223240906,0.06535134,3812.3,3811.9,1.0]
[1641223240907,0.06535134,3812.3,3811.6,0.66897255]
[1641223241409,1.18218516,3812.0,3811.6,0.28997255]
[1641223241908,0.00284211,3811.9,3811.6,0.28997255]
[1641223242306,0.00227369,3811.8,3811.6,0.28997255]
[1641223242706,0.00170527,3811.7,3811.6,0.28997255]
[1641223243305,0.01200946,3811.7,3811.6,0.28997255]
[1641223244152,5.66200946,3811.7,3811.6,0.28997255]
[1641223244554,6.26200946,3811.7,3811.6,0.28997255]
[1641223245153,0.61200946,3811.7,3811.6,0.28997255]
[1641223245553,1.29697423,3811.7,3811.6,0.28997255]
[1641223246153,4.74697423,3811.7,3811.6,0.28997255]
[1641223246955,7.205624,3811.7,3811.6,0.28997255]
[1641223251052,11.655624,3811.7,3811.6,0.28997255]
[1641223251460,7.205624,3811.7,3811.6,0.28997255]
[1641223252057,11.855624,3811.7,3811.6,0.28997255]
[1641223252258,13.61894377,3811.7,3811.6,0.28997255]
[1641223252456,14.61894377,3811.7,3811.6,0.28997255]
[1641223252855,30.04014377,3811.7,3811.6,0.28997255]
[1641223253055,30.04334377,3811.7,3811.6,0.28997255]
[1641223253255,30.04334377,3811.7,3810.5,1.77992192]
[1641223253256,9.1,3811.6,3810.5,0.22889503]
[1641223253459,0.65628,3810.6,3810.1,0.22889503]
[1641223253656,2.81913097,3810.5,3810.1,0.22889503]
[1641223253857,1.16812768,3810.4,3810.1,0.22889503]
[1641223254057,2.4604248,3810.3,3809.5,3.55962738]
[1641223254356,3.0604248,3810.3,3809.6,0.01023163]
[1641223254557,0.656289,3810.0,3809.6,0.01023163]
[1641223254793,0.6,3810.3,3809.2,0.01250532]
[1641223254993,0.3,3810.0,3809.2,0.01250532]
[1641223255195,0.3,3810.3,3809.2,0.01250532]
[1641223255395,1.46812768,3810.4,3809.2,0.01250532]
[1641223255795,1.46812768,3810.4,3809.2,3.5721327]
[1641223256194,1.46812768,3810.4,3809.3,0.0119369]
[1641223256395,1.3123725,3810.3,3809.3,0.0119369]
[1641223256595,3.79358106,3810.3,3809.3,0.0119369]
[1641223256793,1.3123725,3810.3,3809.3,0.0119369]
[1641223257194,1.3123725,3810.3,3810.1,1.33531432]
[1641223257595,1.3123725,3810.3,3810.2,0.00682109]
[1641223258297,1.3123725,3810.3,3810.1,0.00738951]
[1641223259343,1.3123725,3810.3,3810.1,1.34270383]
[1641223259745,1.3123725,3810.3,3810.2,0.00682109]
[1641223260547,2.78675782,3810.3,3810.2,1.46739617]
[1641223261045,2.78675782,3810.3,3810.2,1.47421726]
[1641223261447,3.08675782,3810.3,3810.2,1.47421726]
[1641223261646,3.38675782,3810.3,3810.2,1.47421726]
[1641223261847,2.78675782,3810.3,3810.2,1.47421726]
[1641223262048,2.78675782,3810.3,3810.2,0.00682109]
[1641223262292,2.78675782,3810.3,3810.2,1.47421726]
[1641223262497,2.78675782,3810.3,3810.2,2.66739617]
[1641223262691,2.78675782,3810.3,3810.2,2.67421726]
[1641223264192,2.78675782,3810.3,3810.2,1.47421726]
[1641223267038,1.3123725,3810.3,3810.2,0.00682109]
[1641223267243,0.39280886,3810.9,3810.2,0.00682109]
[1641223267444,0.39280886,3810.9,3810.1,0.00738951]
[1641223267646,0.39280886,3810.9,3810.2,1.4549838]
[1641223268048,6.27535404,3811.3,3810.3,0.00625266]
[1641223268647,6.27535404,3811.3,3810.5,0.65593]
[1641223269046,6.27535404,3811.3,3810.6,0.00454739]
[1641223269248,0.01030634,3811.2,3810.6,0.00454739]
[1641223269909,0.01030634,3811.2,3810.7,1.0349]
[1641223270112,0.01030634,3811.2,3810.8,0.5902262]
[1641223270310,0.01030634,3811.2,3810.9,0.379]
[1641223270514,0.01030634,3811.2,3810.9,0.38184212]
[1641223270710,0.01030634,3811.2,3811.0,0.0022737]
[1641223271712,0.01030634,3811.2,3811.0,1.4572575]
[1641223272010,0.01030634,3811.2,3811.1,9.10170527]
[1641223272612,0.01030634,3811.2,3811.1,0.00170527]
[1641223273017,0.01030634,3811.2,3811.1,1.45668907]
[1641223274443,0.01030634,3811.2,3811.1,0.00170527]
[1641223274841,0.01030634,3811.2,3811.0,0.0022737]
[1641223275041,0.01416304,3811.2,3811.0,0.0022737]
[1641223278898,0.01416304,3811.2,3811.0,1.0022737]
[1641223279301,0.01416304,3811.2,3811.1,4.55170527]
[1641223279501,0.01416304,3811.2,3811.1,0.00170527]
[1641223279901,0.01416304,3811.2,3811.1,1.45668907]
[1641223280302,0.01416304,3811.2,3811.1,3.81173389]
[1641223280502,0.01416304,3811.2,3811.1,1.45668907]
[1641223280703,0.01416304,3811.2,3811.1,3.83155237]
[1641223281170,0.01416304,3811.2,3811.1,1.45668907]
[1641223285304,0.01416304,3811.2,3811.1,0.00170527]
[1641223285603,0.01416304,3811.2,3811.0,0.0022737]
[1641223285804,0.67014304,3811.2,3811.0,0.0022737]
[1641223286007,0.67014304,3811.2,3811.0,1.4572575]
[1641223286409,0.67014304,3811.2,3811.1,0.00170527]
[1641223287111,0.67014304,3811.2,3811.1,1.45668907]
[1641223289147,0.01416304,3811.2,3811.1,1.45668907]
[1641223294213,0.01416304,3811.2,3811.1,0.00170527]
[1641223294412,8.5,3811.1,3810.8,0.06535214]
[1641223294613,1.65626,3811.0,3810.8,0.06535214]
[1641223294813,1.95626,3811.0,3810.9,0.00113685]
[1641223295013,7.6,3810.9,3810.8,0.06535214]
[1641223295414,6.25,3810.9,3810.8,0.06535214]
[1641223295960,7.8337064,3810.9,3810.8,0.06535214]
[1641223296161,2.8837064,3810.9,3810.8,0.06535214]
[1641223296863,3.8837064,3810.9,3810.8,0.06535214]
[1641223297360,0.65624,3810.3,3809.6,1.33531432]
[1641223297565,0.3,3810.2,3809.6,1.33531432]
[1641223297764,0.3,3810.2,3809.7,0.00682108]
[1641223298166,0.95624,3810.3,3809.7,1.37335113]
[1641223298570,0.6562333,3810.0,3809.8,0.00625266]
[1641223298867,0.6,3810.0,3809.8,0.00625266]
[1641223299066,0.3,3810.0,3809.8,0.00625266]
[1641223299268,1.83759816,3810.2,3809.9,1.36653005]
[1641223299465,1.53759816,3810.2,3809.9,1.36653005]
[1641223299732,1.53759816,3810.2,3810.0,0.00511581]
[1641223299917,2.19374816,3810.2,3810.0,0.00511581]
[1641223300721,0.00390163,3810.1,3810.0,0.00511581]
[1641223301222,0.01420998,3810.1,3810.0,0.00511581]
[1641223301824,1.59154987,3810.1,3810.0,0.00511581]
[1641223302023,3.6886,3808.9,3808.8,1.7804239]
[1641223302226,5.07702539,3808.9,3808.8,1.7804239]
[1641223302422,5.37702539,3808.9,3808.8,1.7804239]
[1641223303225,5.37702539,3808.9,3808.5,0.06557218]
[1641223303457,0.6564429,3808.7,3808.5,0.06557218]
[1641223303661,0.6564429,3808.7,3808.6,0.00795793]
[1641223303662,0.9564429,3808.7,3808.6,0.00795793]
[1641223304263,1.6128929,3808.7,3808.6,0.00795793]
[1641223305465,1.3128929,3808.7,3808.6,0.00795793]
[1641223305664,3.6886,3808.9,3808.6,0.00795793]
[1641223306263,0.00396083,3808.8,3808.6,0.00795793]
[1641223307512,0.00396083,3808.8,3808.6,0.66419793]
[1641223307913,0.00396083,3808.8,3808.7,0.00738951]
[1641223312158,0.01427283,3808.8,3808.7,0.00738951]
[1641223316511,0.01427283,3808.8,3808.7,1.1692249]
[1641223316912,0.01427283,3808.8,3808.7,0.00738951]
[1641223317515,0.01427283,3808.8,3808.7,1.1692249]
[1641223318765,2.49275284,3808.8,3808.7,1.1692249]
[1641223319064,0.01427283,3808.8,3808.7,1.1692249]
[1641223319268,2.48002324,3808.8,3808.7,1.1692249]
[1641223320269,0.01427283,3808.8,3808.7,1.1692249]
[1641223321271,1.7680029,3808.8,3808.7,2.50490163]
[1641223321870,1.7680029,3808.8,3808.7,1.1692249]
[1641223322315,4.21449412,3808.8,3808.7,1.1692249]
[1641223322512,1.7680029,3808.8,3808.7,1.1692249]
[1641223323318,1.7680029,3808.8,3808.7,2.50491595]
[1641223323519,0.6564964,3808.7,3808.5,0.06557218]
[1641223323717,1.3130452,3808.3,3807.8,0.79826472]
[1641223323919,1.3130452,3808.3,3807.3,2.45114324]
[1641223323920,0.65659,3808.1,3807.3,2.45114324]
[1641223324119,1.53469,3808.1,3807.9,0.00454739]
[1641223324318,2.53469,3808.1,3807.9,0.00454739]
[1641223324517,11.14452357,3808.0,3807.9,0.00454739]
[1641223324718,3.04452357,3808.0,3807.9,0.00454739]
[1641223325017,3.14372357,3808.0,3807.9,0.00454739]
[1641223325219,6.69452357,3808.0,3807.9,0.00454739]
[1641223325617,0.65669,3807.7,3807.0,0.0096632]
[1641223325821,1.35022873,3807.4,3807.0,0.0096632]
[1641223326064,1.35022873,3807.4,3806.4,1.35954845]
[1641223326271,0.3,3807.3,3806.4,1.35954845]
[1641223326467,0.3,3807.3,3806.4,1.31905376]
[1641223326666,1.35022873,3807.4,3806.4,1.31905376]
[1641223326667,1.65022873,3807.4,3806.4,1.31905376]
[1641223326869,0.00397896,3807.2,3806.4,1.31905376]
[1641223327166,1.65022873,3807.4,3806.4,1.31905376]
[1641223327167,0.66001594,3807.1,3806.4,1.31905376]
[1641223327367,0.3,3807.0,3806.7,0.65659]
[1641223327569,0.00284211,3807.0,3806.7,0.65659]
[1641223327769,0.00227369,3806.9,3806.8,11.49876304]
[1641223327967,0.00227369,3806.9,3806.8,9.1]
[1641223328167,0.00227369,3806.9,3806.8,10.1]
[1641223328370,0.00227369,3806.9,3806.8,11.41293]
[1641223329070,0.00227369,3806.9,3806.8,10.1]
[1641223329907,0.00227369,3806.9,3806.7,0.65659]
[1641223330109,0.65682,3806.6,3805.9,6.21]
[1641223330314,1.313621,3806.5,3805.6,0.71249]
[1641223330508,0.3,3806.4,3806.0,0.00284212]
[1641223330908,1.613621,3806.5,3806.0,0.00284212]
[1641223331310,1.0020988,3806.1,3806.0,0.00284212]
[1641223331512,1.3020988,3806.1,3805.6,0.00511582]
[1641223331712,1.0020988,3806.1,3805.6,0.00511582]
[1641223332511,1.0020988,3806.1,3805.8,0.65675]
[1641223332915,1.0020988,3806.1,3805.9,0.00341054]
[1641223333762,1.3020988,3806.1,3805.9,0.00341054]
[1641223333958,1.3020988,3806.1,3805.6,0.00511582]
[1641223334161,0.6568018,3805.9,3805.6,0.00511582]
[1641223334363,0.3,3806.1,3805.7,0.65676]
[1641223334660,0.3,3806.1,3805.8,0.00397897]
[1641223334861,0.00170527,3806.8,3805.8,0.00397897]
[1641223335060,0.6567696,3806.4,3805.8,0.00397897]
[1641223335261,0.6567696,3806.4,3805.6,0.00511582]
[1641223335563,1.38310163,3806.2,3805.9,0.65674]
[1641223335963,1.68310163,3806.2,3805.9,0.65674]
[1641223336162,1.68310163,3806.2,3805.6,0.00511582]
[1641223336769,1.68310163,3806.2,3805.4,0.66307266]
[1641223336961,1.68310163,3806.2,3805.5,0.00568424]
[1641223337219,0.6568082,3805.9,3805.5,0.00568424]
[1641223337625,0.00763468,3806.1,3805.6,0.65679]
[1641223338027,0.00763468,3806.1,3805.7,0.00454739]
[1641223338328,0.01032026,3805.8,3805.7,0.00454739]
[1641223338724,0.01032026,3805.8,3805.5,0.00568424]
[1641223339327,0.01032026,3805.8,3805.6,0.65679]
[1641223339727,0.01032026,3805.8,3805.7,7.20454739]
[1641223339926,0.01032026,3805.8,3805.7,0.00454739]
[1641223340127,0.01032026,3805.8,3805.7,3.00454739]
[1641223340527,0.01032026,3805.8,3805.7,4.00454739]
[1641223340728,0.01032026,3805.8,3805.7,1.00454739]
[1641223341153,0.01032026,3805.8,3805.7,0.00454739]
[1641223342054,0.01032026,3805.8,3805.7,3.10454739]
[1641223342454,0.01032026,3805.8,3805.7,4.10454739]
[1641223342658,0.0179549,3805.8,3805.7,4.10454739]
[1641223343458,0.0179549,3805.8,3805.7,1.00454739]
[1641223343662,0.0179549,3805.8,3805.7,0.43772806]
[1641223345009,0.0179549,3805.8,3805.7,3.38772806]
[1641223345409,0.0179549,3805.8,3805.7,4.38772806]
[1641223346210,0.0179549,3805.8,3805.7,1.43772806]
[1641223346612,0.0179549,3805.8,3805.7,0.43772806]
[1641223347812,0.01697481,3805.8,3805.7,0.43772806]
[1641223348457,0.01697481,3805.8,3805.7,1.58739701]
[1641223351061,0.01697481,3805.8,3805.7,5.07478015]
[1641223351463,0.01697481,3805.8,3805.7,6.07478015]
[1641223352305,0.01697481,3805.8,3805.7,2.58739701]
[1641223352706,0.01697481,3805.8,3805.7,1.58739701]
[1641223353912,0.01697481,3805.8,3805.7,5.23739701]
[1641223354210,0.01697481,3805.8,3805.7,6.23739701]
[1641223354409,0.01697481,3805.8,3805.7,2.58739701]
[1641223354610,0.01697481,3805.8,3805.7,1.58739701]
[1641223354809,0.01697481,3805.8,3805.7,2.58739701]
[1641223355410,0.01697481,3805.8,3805.7,1.58739701]
[1641223355610,0.01697481,3805.8,3805.7,2.58739701]
[1641223355811,0.01697481,3805.8,3805.7,1.58739701]
[1641223356079,0.01697481,3805.8,3805.7,2.58739701]
[1641223356279,0.01032026,3805.8,3805.7,1.58739701]
[1641223356484,2.31349,3807.8,3805.8,9.1]
[1641223356485,0.00113684,3806.7,3805.8,9.1]
[1641223356678,0.00113684,3806.7,3805.9,0.379]
[1641223356880,0.00113684,3806.7,3806.5,0.01240664]
[1641223357078,0.00113684,3806.7,3806.6,9.479]
[1641223357478,0.00113684,3806.7,3806.6,11.50325136]
[1641223357683,0.00113684,3806.7,3806.6,12.18555136]
[1641223357883,0.65648,3807.8,3806.6,12.84209136]
[1641223358082,0.65648,3807.8,3806.7,1.0]
[1641223358284,0.00454739,3807.5,3806.8,0.379]
[1641223358686,0.00397897,3807.4,3806.8,0.379]
[1641223359087,0.00341054,3807.3,3806.8,0.379]
[1641223359285,0.00341054,3807.3,3807.2,1.777271]
[1641223359587,0.65651,3807.5,3807.2,1.777271]
[1641223359809,0.65651,3807.5,3807.3,0.65652]
[1641223360011,0.66105739,3807.5,3807.3,0.65652]
[1641223360214,1.31756429,3807.5,3807.2,1.777271]
[1641223360412,1.61756429,3807.5,3807.2,1.777271]
[1641223360912,2.27412429,3807.5,3807.1,1.777271]
[1641223361313,0.656599,3807.3,3807.1,1.777271]
[1641223361513,0.956599,3807.3,3807.1,1.777271]
[1641223361716,1.31605402,3807.2,3807.1,1.777271]
[1641223362113,1.61605402,3807.2,3807.1,1.777271]
[1641223362313,1.61605402,3807.2,3807.1,0.43318067]
[1641223363465,2.72763593,3807.2,3807.1,0.43318067]
[1641223365770,0.3,3807.1,3806.8,0.06572464]
[1641223365972,3.2838296,3807.0,3806.8,0.06572464]
[1641223366170,0.3,3806.9,3806.5,1.777271]
[1641223366370,0.23563565,3806.9,3806.5,1.777271]
[1641223366773,1.38892102,3806.6,3806.5,1.777271]
[1641223366974,1.68892102,3806.6,3806.5,1.777271]
[1641223367218,1.68892102,3806.6,3806.5,0.00113684]
[1641223367410,1.68892102,3806.6,3806.3,1.777271]
[1641223367917,1.68892102,3806.6,3806.1,1.777271]
[1641223368116,0.6568,3806.5,3806.1,1.777271]
[1641223368318,3.9407807,3806.5,3806.2,0.00170527]
[1641223368515,0.3,3806.4,3806.2,0.00170527]
[1641223369319,0.9567633,3806.4,3806.2,0.00170527]
[1641223371763,0.9567633,3806.4,3806.3,1.777271]
[1641223372163,0.9567633,3806.4,3806.3,1.77840785]
[1641223372364,0.9567633,3806.4,3806.3,0.00113685]
[1641223372764,0.9567633,3806.4,3806.0,0.00284212]
[1641223372765,0.65674,3806.2,3806.0,0.00284212]
[1641223373068,2.270231,3806.2,3806.0,0.00284212]
[1641223373465,0.3,3806.1,3806.0,0.00284212]
[1641223373867,0.30380555,3806.1,3806.0,0.00284212]
[1641223374266,0.30380555,3806.1,3806.0,0.65674]
[1641223374713,0.30380555,3806.1,3806.0,0.65958212]
[1641223376923,0.00380555,3806.1,3806.0,0.65958212]
[1641223378969,0.30380555,3806.1,3806.0,0.65958212]
[1641223379369,0.30380555,3806.1,3806.0,0.00284212]
[1641223379771,0.30380555,3806.1,3805.9,0.00341054]
[1641223380571,1.40215095,3806.0,3805.9,0.00341054]
[1641223380768,4.10532821,3806.0,3805.9,0.00341054]
[1641223380968,4.10532821,3806.0,3805.6,3.55544241]
[1641223380969,4.10532821,3806.0,3805.7,0.00454739]
[1641223381171,3.2844945,3805.9,3805.7,0.00454739]
[1641223381568,3.8844945,3805.9,3805.7,0.00454739]
[1641223381868,3.8844945,3805.9,3805.5,0.00568424]
[1641223382317,0.65689,3805.8,3805.5,0.00568424]
[1641223383119,1.31379,3805.8,3805.5,0.00568424]
[1641223385421,3.71558277,3805.8,3805.5,0.00568424]
[1641223385620,1.31394,3805.7,3805.4,0.00625266]
[1641223385819,3.46205201,3805.6,3805.4,0.00625266]
[1641223386455,0.9570386,3805.6,3805.4,0.00625266]
[1641223386657,0.00380555,3806.1,3805.2,1.23497077]
[1641223386955,0.00380555,3806.1,3805.3,0.00682109]
[1641223386956,0.6568,3805.9,3805.3,0.00682109]
[1641223387560,0.6568,3805.9,3805.4,0.65687]
[1641223387760,0.6568,3805.9,3805.4,0.63503212]
[1641223387959,0.6568,3805.9,3805.5,0.00568424]
[1641223388166,1.9706227,3805.8,3805.5,0.00568424]
[1641223388362,1.4974127,3805.8,3805.7,1.78222519]
[1641223388560,2.1405127,3805.8,3805.7,1.78222519]
[1641223388761,5.31422,3805.7,3805.1,2.89033528]
[1641223388963,1.31422,3805.7,3805.1,2.89033528]
[1641223389163,1.01654224,3805.5,3805.2,0.00170527]
[1641223389361,1.01654224,3805.5,3804.6,4.42510727]
[1641223389362,1.01654224,3805.5,3804.6,4.35922892]
[1641223389562,0.4104,3805.6,3804.6,4.35922892]
[1641223389563,1.06355476,3804.7,3804.6,4.35922892]
[1641223389820,1.06355476,3804.7,3804.2,0.06]
[1641223390021,2.67780476,3804.7,3804.2,0.06]
[1641223390217,2.67780476,3804.7,3804.4,0.00454739]
[1641223390619,2.67780476,3804.7,3804.0,1.00682108]
[1641223390821,0.65711,3804.5,3804.0,1.00682108]
[1641223391018,0.6571004,3804.3,3804.1,0.00625266]
[1641223392022,0.6571004,3804.3,3804.0,0.00682108]
[1641223394967,2.43043814,3804.2,3804.0,0.00682108]
[1641223395270,0.9571004,3804.3,3803.5,0.0096632]
[1641223395466,0.6572358,3803.9,3803.5,0.0096632]
[1641223395666,0.6572358,3803.9,3803.4,0.01023162]
[1641223395867,1.41705336,3803.7,3803.4,0.01023162]
[1641223396971,1.41705336,3803.7,3803.3,0.01080004]
[1641223397206,1.41705336,3803.7,3803.2,0.61805004]
[1641223397408,0.00170527,3803.6,3803.2,0.61805004]
[1641223397814,0.00113684,3803.5,3803.2,0.61805004]
[1641223398311,1.41705336,3803.7,3803.2,0.61805004]
[1641223398312,0.00170527,3803.6,3803.2,0.61805004]
[1641223398713,0.00113684,3803.5,3803.2,0.61805004]
[1641223398914,0.00113684,3803.5,3803.4,3.51460565]
[1641223399315,0.00113684,3803.5,3803.4,3.86943682]
[1641223399518,0.06588205,3804.7,3804.1,0.65698]
[1641223399715,0.06588205,3804.7,3804.2,0.01208563]
[1641223399914,0.06588205,3804.7,3804.2,1.08173203]
[1641223399915,0.00625266,3804.6,3804.2,1.08173203]
[1641223400318,0.00568424,3804.5,3804.2,1.08173203]
[1641223400515,0.00568424,3804.5,3804.3,1.31391]
[1641223400716,0.00511581,3804.4,3804.3,1.31391]
[1641223401567,0.00511581,3804.4,3804.3,1.49268802]
[1641223401767,0.00511581,3804.4,3804.3,3.91826971]
[1641223401966,0.00511581,3804.4,3804.3,4.91826971]
[1641223402368,0.00511581,3804.4,3804.3,2.49268802]
[1641223402668,0.00511581,3804.4,3804.3,1.49268802]
[1641223403268,0.00511581,3804.4,3804.3,0.17877802]
[1641223403670,1.04784695,3804.4,3804.3,0.17877802]
[1641223403870,1.64784695,3804.4,3804.3,0.17877802]
[1641223404069,1.64784695,3804.4,3804.2,1.78299597]
[1641223404270,0.00511581,3804.4,3804.2,1.78299597]
[1641223404470,0.00454739,3804.3,3804.2,2.44007597]
[1641223404925,0.01020486,3804.3,3804.2,2.44007597]
[1641223405530,2.71374661,3804.3,3804.2,8.60708]
[1641223405922,0.01020486,3804.3,3804.2,8.60708]
[1641223406127,0.01020486,3804.3,3804.2,8.78585802]
[1641223406528,0.01020486,3804.3,3804.2,11.21382728]
[1641223407128,0.00448892,3804.3,3804.2,11.21382728]
[1641223407731,0.06588064,3804.8,3804.3,9.05]
[1641223407934,0.06588064,3804.8,3804.6,0.65684]
[1641223408137,0.06588064,3804.8,3804.7,11.50494137]
[1641223408570,0.06872276,3804.8,3804.7,12.50494137]
[1641223409069,0.06872276,3804.8,3804.7,28.19394137]
[1641223409267,0.00284212,3804.8,3804.7,28.19394137]
[1641223409468,0.00284212,3804.8,3804.7,28.37271939]
[1641223410269,0.00284212,3804.8,3804.7,13.06271939]
[1641223410871,0.00284212,3804.8,3804.7,28.37271939]
[1641223411870,0.00355355,3804.9,3804.8,9.05]
[1641223412069,0.00355355,3804.9,3804.8,13.13934294]
[1641223412315,0.00355355,3804.9,3804.8,28.44934294]
[1641223413120,0.00355355,3804.9,3804.8,13.31812096]
[1641223413322,0.00355355,3804.9,3804.8,10.60777802]
[1641223413919,5.355e-05,3804.9,3804.8,25.91777802]
[1641223414120,0.06587994,3805.2,3804.8,25.92999898]
[1641223414121,0.00013349,3805.2,3804.8,25.92999898]
[1641223414336,0.0107,3805.6,3805.2,9.05]
[1641223414524,0.0107,3805.6,3805.3,0.379]
[1641223414720,0.0107,3805.6,3805.3,1.379]
[1641223414920,5.47598651,3806.9,3805.5,15.31]
[1641223415120,5.47598651,3806.9,3805.0,0.04995785]